bitfinex/quotes_SOLUSD_20250717
["timestamp","ask_amount","ask_price","bid_price","bid_amount"]
[1752772998869,47.00468397,172.98,172.94,7.07374535]
[1752772999042,47.00468397,172.98,172.9,6.38374535]
[1752772999043,30.22,172.98,172.97,6.38374535]
[1752772999456,30.22,172.98,172.97,7.07374535]
[1752772999841,0.2,172.99,172.97,7.07374535]
[1752773000047,0.2,172.99,172.98,6.38374535]
[1752773000268,0.2,172.99,172.98,7.07374535]
[1752773004463,0.2,172.99,172.98,6.38374535]
[1752773005067,0.2,172.99,172.98,7.07374535]
[1752773011198,0.2,172.99,172.98,7.65184686]
[1752773011570,0.2,172.99,172.98,14.03559221]
[1752773012091,0.2,173.01,172.98,14.03559221]
[1752773012294,0.2,173.01,173.0,12.7674907]
[1752773012682,0.2,173.01,173.0,13.4874907]
[1752773012992,0.2,173.01,173.0,19.26783752]
[1752773015301,0.2,173.01,173.0,12.88409217]
[1752773017218,0.2,173.01,173.0,12.16409217]
[1752773017508,0.86,173.01,172.95,1.5219]
[1752773017685,0.66,173.0,172.99,6.38374535]
[1752773018510,0.66,173.0,172.96,5.7816674]
[1752773018719,0.66,172.99,172.96,5.7816674]
[1752773019010,0.66,172.99,172.98,6.38374535]
[1752773019502,0.66,172.99,172.95,5.78192778]
[1752773019503,0.66,172.99,172.97,6.38374535]
[1752773019679,5.9800242,173.01,172.97,6.38374535]
[1752773019680,0.66,172.98,172.97,6.38374535]
[1752773020111,0.66,173.0,172.97,6.38374535]
[1752773020395,0.66,172.99,172.97,6.38374535]
[1752773020802,0.66,172.98,172.96,6.38374535]
[1752773021109,0.66,172.97,172.95,6.38374535]
[1752773022620,0.66,172.96,172.94,6.38374535]
[1752773022793,0.66,172.95,172.93,6.38374535]
[1752773023212,0.66,172.95,172.91,6.50325685]
[1752773023213,30.86,172.97,172.94,6.38374535]
[1752773023417,0.66,172.96,172.94,6.38374535]
[1752773024503,0.66,172.95,172.91,6.38374535]
[1752773024886,0.66,172.94,172.91,6.38374535]
[1752773025084,30.2,172.93,172.91,6.38374535]
[1752773025715,30.86,172.93,172.91,6.38374535]
[1752773025915,0.66,172.92,172.9,0.03]
[1752773026117,6.44305707,172.92,172.9,0.03]
[1752773026302,0.66,172.91,172.9,0.03]
[1752773027913,23.22803947,172.91,172.9,0.03]
[1752773028897,17.44468397,172.91,172.9,0.03]
[1752773030199,23.22803947,172.91,172.9,0.03]
[1752773030400,29.61178482,172.91,172.9,0.03]
[1752773032527,29.61178482,172.91,172.9,1e-08]
[1752773034899,59.81178482,172.91,172.9,1e-08]
[1752773035105,58.81178482,172.91,172.9,1e-08]
[1752773037230,59.00178482,172.91,172.9,1e-08]
[1752773037923,62.01717849,172.91,172.9,1e-08]
[1752773040716,59.00178482,172.91,172.9,1e-08]
[1752773041027,62.01651021,172.91,172.9,1e-08]
[1752773041498,59.00178482,172.91,172.9,1e-08]
[1752773041706,52.61803947,172.91,172.9,1e-08]
[1752773041919,58.81178482,172.91,172.9,1e-08]
[1752773042322,78.42803947,172.91,172.9,1e-08]
[1752773042519,16.78468397,172.92,172.9,0.67000001]
[1752773042737,16.78468397,172.92,172.91,0.67]
[1752773043033,46.98468397,172.92,172.91,0.67]
[1752773043202,46.98468397,172.92,172.9,1e-08]
[1752773043927,46.98468397,172.92,172.91,0.67]
[1752773045041,47.04468397,172.92,172.91,0.67]
[1752773045829,47.04468397,172.92,172.9,6.38374536]
[1752773046027,47.04468397,172.92,172.9,7.05374536]
[1752773046525,52.82773109,172.92,172.9,0.67000001]
[1752773047131,16.78468397,172.91,172.9,1e-08]
[1752773047937,16.78468397,172.91,172.9,7.05374536]
[1752773048229,16.78468397,172.91,172.9,6.38374536]
[1752773048527,16.78468397,172.91,172.9,1e-08]
[1752773048829,22.56803947,172.91,172.9,1e-08]
[1752773052125,29.14178482,172.91,172.9,1e-08]
[1752773053026,28.95178482,172.91,172.9,1e-08]
[1752773054745,59.15178482,172.91,172.9,1e-08]
[1752773054907,52.76803947,172.91,172.9,1e-08]
[1752773055228,65.72553017,172.91,172.9,1e-08]
[1752773055427,23.16842932,172.85,172.84,0.03]
[1752773055645,16.78468397,172.85,172.84,0.03]
[1752773055943,46.98468397,172.85,172.84,0.7]
[1752773056148,46.98468397,172.85,172.84,0.03]
[1752773056445,53.36842932,172.85,172.84,0.03]
[1752773056815,52.770047,172.85,172.84,0.03]
[1752773058618,59.15379235,172.85,172.84,0.03]
[1752773058935,62.01537079,172.85,172.84,0.03]
[1752773059139,55.63162544,172.85,172.84,0.03]
[1752773059325,62.01537079,172.85,172.84,0.03]
[1752773061135,16.78468397,172.84,172.83,0.03]
[1752773061335,16.78468397,172.77,172.75,0.67]
[1752773061539,30.2,172.76,172.75,0.67]
[1752773061841,30.2,172.76,172.73,6.38374535]
[1752773062325,30.2,172.76,172.74,0.67]
[1752773062836,30.2,172.76,172.75,0.67]
[1752773063043,30.2,172.76,172.73,0.67]
[1752773063044,36.58374535,172.76,172.73,0.67]
[1752773063238,42.3721674,172.76,172.73,0.67]
[1752773063622,42.3721674,172.76,172.72,0.2]
[1752773063623,30.2,172.76,172.74,0.67]
[1752773064129,46.98468397,172.76,172.75,0.67]
[1752773064941,30.2,172.76,172.75,0.67]
[1752773065830,30.2,172.76,172.75,6.45871201]
[1752773066139,30.2,172.76,172.75,0.67]
[1752773066343,30.2,172.76,172.75,7.05374535]
[1752773066548,30.2,172.76,172.75,0.67]
[1752773066836,30.2,172.76,172.75,6.45871201]
[1752773067238,30.2,172.76,172.75,12.84245736]
[1752773067845,30.2,172.76,172.75,12.87245736]
[1752773070747,30.2,172.76,172.75,7.08374535]
[1752773072438,30.2,172.76,172.75,12.87245736]
[1752773076334,26.0,172.84,172.75,12.87245736]
[1752773076650,46.96468397,172.83,172.8,6.38374535]
[1752773077029,46.96468397,172.83,172.81,7.08374535]
[1752773077232,46.96468397,172.83,172.82,0.7]
[1752773077643,46.96468397,172.83,172.8,0.7]
[1752773077948,46.96468397,172.83,172.8,7.08374535]
[1752773078656,46.96468397,172.83,172.8,0.7]
[1752773079739,46.96468397,172.83,172.8,7.08374535]
[1752773080559,46.96468397,172.83,172.81,0.7]
[1752773081135,46.96468397,172.83,172.82,0.7]
[1752773081965,30.18,172.83,172.82,0.7]
[1752773082261,30.18,172.83,172.82,7.08374535]
[1752773084334,30.18,172.83,172.82,12.87011266]
[1752773085272,30.18,172.83,172.82,7.08374535]
[1752773088859,30.18,172.83,172.82,0.7]
[1752773089169,30.16,172.83,172.82,7.08374535]
[1752773089551,30.16,172.83,172.82,7.11374535]
[1752773090469,30.22,172.83,172.82,7.11374535]
[1752773090846,0.06,172.83,172.82,7.11374535]
[1752773091051,30.22,172.83,172.82,7.11374535]
[1752773092578,30.22,172.83,172.82,12.90011266]
[1752773093264,0.06,172.83,172.82,12.90011266]
[1752773093778,0.06,172.9,172.84,1.6276]
[1752773094000,0.06,172.9,172.89,6.38374535]
[1752773094157,30.22,172.9,172.89,6.38374535]
[1752773094503,30.22,172.9,172.89,7.08374535]
[1752773095479,30.22,172.9,172.89,12.86776987]
[1752773099368,0.06,172.9,172.89,12.86776987]
[1752773101091,0.06,172.9,172.89,19.40566987]
[1752773102399,0.06,172.9,172.89,13.02192452]
[1752773102601,0.06,172.9,172.89,7.08374535]
[1752773103094,0.06,172.9,172.89,12.86776987]
[1752773103678,0.06,172.9,172.89,7.08374535]
[1752773103883,0.06,172.9,172.87,0.72]
[1752773104089,0.06,172.9,172.88,6.38374535]
[1752773104470,30.12,172.89,172.85,6.38374535]
[1752773104778,6.63374535,172.88,172.83,6.38374535]
[1752773105593,6.63374535,172.88,172.84,6.38374535]
[1752773105773,16.78468397,172.88,172.84,6.38374535]
[1752773105976,16.78468397,172.88,172.85,0.72]
[1752773106589,35.90402547,172.89,172.85,0.72]
[1752773106791,30.12,172.89,172.85,7.10374535]
[1752773107376,30.12,172.89,172.86,7.10374535]
[1752773108292,30.12,172.89,172.86,0.72]
[1752773108590,30.12,172.89,172.85,6.38374535]
[1752773108780,35.90403638,172.89,172.85,7.10374535]
[1752773108964,0.25,172.88,172.84,6.38374535]
[1752773111989,30.12,172.85,172.83,7.10374535]
[1752773112684,30.12,172.85,172.83,7.13374535]
[1752773115100,30.12,172.85,172.83,6.41374535]
[1752773115297,30.12,172.85,172.84,0.72]
[1752773115701,26.06,172.9,172.84,7.10374535]
[1752773115898,30.18,172.9,172.88,6.38374535]
[1752773116593,30.18,172.9,172.88,7.10374535]
[1752773116905,0.06,172.9,172.89,7.10374535]
[1752773117486,0.06,172.9,172.89,12.88776987]
[1752773119894,0.06,172.9,172.89,6.38374535]
[1752773122017,0.06,172.9,172.89,12.88776987]
[1752773126204,0.06,172.9,172.89,20.80401522]
[1752773126910,0.06,172.92,172.91,32.5258]
[1752773127097,0.06,172.92,172.91,38.90954535]
[1752773127302,0.06,172.92,172.91,39.62954535]
[1752773127806,1e-08,172.92,172.91,39.62954535]
[1752773128004,0.06,172.97,172.95,26.0]
[1752773128317,0.06,172.97,172.96,6.38374535]
[1752773128521,0.06,172.97,172.96,7.06374535]
[1752773129130,0.06,172.97,172.96,0.68]
[1752773129431,0.06,172.97,172.96,7.06374535]
[1752773129799,0.06,172.97,172.96,6.38374535]
[1752773130728,0.06,172.97,172.96,12.84542897]
[1752773131293,0.06,172.97,172.96,6.38374535]
[1752773131714,0.06,172.97,172.96,12.16542897]
[1752773132216,0.06,172.97,172.96,12.84542897]
[1752773133803,0.06,172.97,172.96,14.36652897]
[1752773134199,0.06,172.97,172.96,12.84542897]
[1752773134830,0.06,172.97,172.95,31.78194671]
[1752773135119,0.06,172.97,172.96,6.38374535]
[1752773136321,0.06,172.97,172.96,12.16542897]
[1752773136631,0.06,172.97,172.96,12.84542897]
[1752773136834,0.06,172.97,172.96,7.06374535]
[1752773137505,0.06,172.97,172.96,6.38374535]
[1752773138300,0.06,172.97,172.96,12.16542897]
[1752773138525,0.06,172.97,172.96,12.84542897]
[1752773139826,0.06,172.97,172.96,6.38374535]
[1752773142922,0.06,172.97,172.96,12.84542897]
[1752773144725,0.75,172.97,172.94,6.38374535]
[1752773145113,0.69,172.96,172.94,6.38374535]
[1752773146205,0.69,172.96,172.92,5.78276485]
[1752773146423,0.69,172.95,172.93,6.38374535]
[1752773146609,0.69,172.94,172.92,6.38374535]
[1752773146815,0.69,172.96,172.93,6.38374535]
[1752773147219,1.2685363,172.95,172.9,0.68]
[1752773147412,0.69,172.94,172.9,6.38374535]
[1752773147611,1.2685363,172.94,172.9,6.38374535]
[1752773147834,0.69,172.93,172.89,0.03]
[1752773148010,0.69,172.93,172.9,6.38374535]
[1752773148733,6.47179389,172.96,172.91,6.38374535]
[1752773148902,1.2685363,172.95,172.92,6.38374535]
[1752773149106,1.2685363,172.95,172.9,5.783605]
[1752773149316,0.5785363,172.95,172.91,6.38374535]
[1752773149529,17.47468397,172.94,172.89,0.03]
[1752773149728,16.78468397,172.94,172.9,6.38374535]
[1752773149927,17.36322027,172.94,172.9,6.38374535]
[1752773150238,18.05322027,172.94,172.9,7.06374535]
[1752773150537,17.36322027,172.94,172.91,6.38374535]
[1752773150713,17.36322027,172.94,172.91,7.06374535]
[1752773151515,23.1457298,172.94,172.9,6.38374535]
[1752773151736,0.69,172.93,172.9,6.38374535]
[1752773151932,0.69,172.92,172.9,6.38374535]
[1752773152434,0.69,172.92,172.89,0.03]
[1752773152435,0.69,172.91,172.89,0.03]
[1752773152642,6.47304631,172.92,172.89,0.03]
[1752773153012,6.47304631,172.92,172.89,6.41374535]
[1752773153718,36.53304631,172.92,172.89,6.41374535]
[1752773154032,0.5785363,172.91,172.89,0.03]
[1752773154237,36.53304631,172.92,172.89,0.03]
[1752773154942,30.75,172.92,172.89,0.03]
[1752773155240,30.06,172.92,172.89,6.41374535]
[1752773155414,36.5330387,172.92,172.89,0.03]
[1752773155816,35.8430387,172.92,172.89,0.03]
[1752773156018,0.69,172.91,172.89,0.03]
[1752773156328,6.47344687,172.91,172.89,0.03]
[1752773156528,0.69,172.91,172.89,0.03]
[1752773156941,0.69,172.91,172.9,0.03]
[1752773157927,36.42167801,172.92,172.9,0.03]
[1752773158348,37.08167801,172.92,172.9,0.03]
[1752773158644,30.6385363,172.92,172.9,0.03]
[1752773158814,30.06,172.92,172.9,0.7]
[1752773159018,0.06,172.93,172.9,6.41374535]
[1752773159249,30.12,172.93,172.91,0.67]
[1752773159429,30.12,172.93,172.9,6.41374535]
[1752773159629,30.12,172.93,172.9,7.08374535]
[1752773160253,30.12,172.93,172.91,7.05374535]
[1752773160557,30.12,172.93,172.91,6.38374535]
[1752773160729,30.12,172.93,172.92,7.05374535]
[1752773160730,0.06,172.93,172.92,7.05374535]
[1752773161727,0.06,172.93,172.92,7.63204745]
[1752773162420,0.06,172.93,172.92,13.4150685]
[1752773163251,0.06,172.93,172.92,7.03132315]
[1752773163456,0.06,172.93,172.92,6.45302105]
[1752773163628,0.06,172.93,172.92,12.8367664]
[1752773164950,0.06,172.93,172.92,13.4150685]
[1752773169262,0.06,172.93,172.92,43.4550685]
[1752773173836,0.06,172.93,172.92,7.03132315]
[1752773174073,0.06,172.93,172.92,13.4150685]
[1752773174238,0.06,172.93,172.92,12.8367664]
[1752773174594,0.06,172.93,172.92,12.1667664]
[1752773175365,0.06,172.93,172.92,12.8367664]
[1752773176138,0.06,172.93,172.92,13.4150685]
[1752773180382,0.06,172.93,172.92,13.4450685]
[1752773181581,0.06,172.93,172.92,12.1967664]
[1752773183170,0.06,172.93,172.92,12.8667664]
[1752773189325,1e-08,172.93,172.92,12.8667664]
[1752773189627,0.06,172.97,172.92,57.34431902]
[1752773189784,0.06,172.97,172.96,6.38374535]
[1752773189988,0.06,172.97,172.93,1.27826866]
[1752773189989,0.75,172.97,172.93,1.27826866]
[1752773190188,0.75,172.97,172.96,6.38374535]
[1752773190385,0.75,172.97,172.93,1.27826866]
[1752773190586,0.75,172.97,172.96,6.38374535]
[1752773192095,0.06,172.97,172.96,12.86542897]
[1752773197014,0.06,172.97,172.96,12.16542897]
[1752773197514,0.75,172.97,172.95,5.78198045]
[1752773197692,0.75,172.97,172.93,6.38374535]
[1752773198088,0.75,172.97,172.94,6.38374535]
[1752773198306,0.69,172.96,172.94,6.38374535]
[1752773198625,0.06,172.97,172.95,6.38374535]
[1752773198825,0.06,172.97,172.96,6.38374535]
[1752773199691,0.06,172.97,172.96,12.16542897]
[1752773200024,0.06,172.97,172.96,12.86542897]
[1752773201808,0.06,172.97,172.96,12.16542897]
[1752773202432,0.75,172.97,172.92,5.81291671]
[1752773202609,0.75,172.97,172.93,6.38374535]
[1752773202810,0.75,172.97,172.92,26.03]
[1752773203003,0.75,172.97,172.93,6.38374535]
[1752773203305,17.36322027,172.96,172.92,0.03]
[1752773203513,23.74696562,172.96,172.92,0.03]
[1752773203701,0.69,172.95,172.92,0.03]
[1752773203888,0.5785363,172.94,172.92,0.03]
[1752773204089,6.3609713,172.94,172.92,0.03]
[1752773204285,0.69,172.93,172.92,0.03]
[1752773208002,7.05064103,172.95,172.92,0.03]
[1752773208201,0.69,172.95,172.92,6.41374535]
[1752773208406,0.12,172.96,172.92,6.41374535]
[1752773208751,0.12,172.96,172.93,6.38374535]
[1752773209347,30.6385363,172.97,172.94,6.38374535]
[1752773210044,30.06,172.97,172.94,6.38374535]
[1752773210209,30.06,172.97,172.94,7.08374535]
[1752773210408,30.06,172.97,172.94,6.38374535]
[1752773210804,0.12,172.96,172.94,6.38374535]
[1752773211021,0.12,172.95,172.93,6.38374535]
[1752773211418,30.18,172.97,172.93,6.38374535]
[1752773211623,0.12,172.96,172.93,6.38374535]
[1752773213321,30.06,172.97,172.95,6.38374535]
[1752773213523,30.06,172.97,172.96,6.38374535]
[1752773215426,30.06,172.97,172.95,6.38374535]
[1752773216740,30.06,172.97,172.94,6.38374535]
[1752773216741,30.75,172.97,172.94,6.38374535]
[1752773217319,0.72,172.96,172.94,6.38374535]
[1752773217628,0.72,172.96,172.95,6.38374535]
[1752773217810,30.06,172.97,172.95,6.38374535]
[1752773218012,30.78,172.97,172.95,6.38374535]
[1752773219031,36.56138494,172.97,172.94,6.38374535]
[1752773219223,0.72,172.96,172.94,6.38374535]
[1752773219437,1.2985363,172.95,172.92,6.41374535]
[1752773219674,30.7,172.94,172.92,0.03]
[1752773219859,6.96228165,172.93,172.92,0.03]
[1752773220019,1.2985363,172.93,172.92,0.03]
[1752773220351,24.46696562,172.93,172.92,0.03]
[1752773220549,30.24965225,172.93,172.92,1e-08]
[1752773221339,42.78468397,172.91,172.9,1e-08]
[1752773221537,79.14842932,172.91,172.9,1e-08]
[1752773221732,80.44696562,172.91,172.9,1e-08]
[1752773221930,16.78468397,172.86,172.84,1.22559884]
[1752773222124,53.72696562,172.86,172.84,1.22559884]
[1752773222438,53.72696562,172.86,172.83,0.03]
[1752773222439,42.78468397,172.84,172.83,0.03]
[1752773222630,16.78468397,172.82,172.76,0.03]
[1752773222834,6.38374535,172.79,172.76,0.03]
[1752773223038,29.98,172.78,172.76,0.03]
[1752773223347,17.36322027,172.77,172.76,0.03]
[1752773223545,18.08322027,172.77,172.76,0.03]
[1752773223741,24.46696562,172.77,172.76,0.03]
[1752773224417,23.74696562,172.77,172.76,0.03]
[1752773224618,26.0,172.81,172.76,0.03]
[1752773224619,6.96228165,172.8,172.76,0.03]
[1752773224836,46.76468397,172.79,172.76,7.06374535]
[1752773225318,29.98,172.79,172.78,6.38374535]
[1752773225521,29.98,172.79,172.78,7.03374535]
[1752773225726,29.98,172.81,172.78,7.03374535]
[1752773225928,29.98,172.81,172.76,0.03]
[1752773225929,29.98,172.81,172.79,7.03374535]
[1752773226346,29.98,172.81,172.8,6.38374535]
[1752773226728,29.98,172.81,172.8,7.03374535]
[1752773227244,0.5785363,172.84,172.8,7.03374535]
[1752773227450,29.98,172.83,172.81,0.65]
[1752773227636,29.98,172.83,172.82,7.03374535]
[1752773227837,29.98,172.83,172.82,6.38374535]
[1752773228144,29.98,172.83,172.8,0.65]
[1752773228351,29.98,172.83,172.81,6.38374535]
[1752773229830,0.5785363,172.86,172.82,7.03374535]
[1752773230035,29.98,172.85,172.84,6.38374535]
[1752773230725,0.5785363,172.88,172.84,7.03374535]
[1752773230945,29.98,172.87,172.85,0.65]
[1752773231136,29.98,172.87,172.86,6.38374535]
[1752773231755,29.98,172.87,172.86,7.03374535]
[1752773232142,29.98,172.87,172.84,6.43563519]
[1752773232452,29.98,172.87,172.86,6.38374535]
[1752773233025,29.98,172.87,172.86,9.36648112]
[1752773233237,29.98,172.87,172.86,10.01648112]
[1752773237041,29.98,172.87,172.86,15.80150946]
[1752773237236,29.98,172.89,172.86,0.65]
[1752773237454,29.98,172.89,172.85,9.36648112]
[1752773237642,30.7,172.89,172.85,9.36648112]
[1752773237842,29.98,172.89,172.88,9.36648112]
[1752773238354,29.98,172.89,172.86,0.65]
[1752773238563,29.98,172.89,172.87,0.65]
[1752773239249,29.98,172.89,172.88,10.01648112]
[1752773239862,29.98,172.89,172.88,9.36648112]
[1752773241054,29.98,172.89,172.86,6.43491834]
[1752773241260,29.98,172.89,172.88,9.36648112]
[1752773241840,29.98,172.89,172.88,10.01648112]
[1752773242067,29.98,172.91,172.88,10.01648112]
[1752773242242,29.98,172.91,172.9,9.36648112]
[1752773243358,29.98,172.91,172.88,5.78430044]
[1752773243559,29.98,172.91,172.9,9.36648112]
[1752773244162,0.06,172.93,172.9,10.01648112]
[1752773244365,30.04,172.93,172.92,9.36648112]
[1752773244563,30.04,172.93,172.92,10.01648112]
[1752773244764,0.06,172.93,172.92,10.01648112]
[1752773244969,0.06,172.93,172.89,0.65]
[1752773245197,16.78468397,172.89,172.83,1.5414]
[1752773245474,40.66501742,172.88,172.83,9.36648112]
[1752773245770,0.72,172.87,172.83,9.36648112]
[1752773246254,1.2985363,172.86,172.83,9.36648112]
[1752773246443,30.0,172.85,172.83,9.36648112]
[1752773246876,30.0,172.85,172.82,9.39648112]
[1752773247375,30.0,172.85,172.82,15.83277139]
[1752773248153,30.0,172.85,172.84,9.36648112]
[1752773248376,30.0,172.85,172.84,10.04648112]
[1752773248545,30.0,172.85,172.82,0.71]
[1752773248868,9.36648112,172.83,172.82,0.03]
[1752773249051,31.9371976,172.83,172.82,0.03]
[1752773249256,32.6571976,172.83,172.82,0.03]
[1752773250344,26.87116509,172.83,172.82,0.03]
[1752773250572,0.5785363,172.85,172.82,9.39648112]
[1752773250746,30.0,172.83,172.82,0.71]
[1752773250942,30.0,172.83,172.82,0.03]
[1752773252644,0.5785363,172.86,172.82,10.07648112]
[1752773252857,30.0,172.84,172.83,10.04648112]
[1752773253753,30.0,172.84,172.83,15.83251363]
[1752773253956,30.0,172.86,172.83,15.83251363]
[1752773254157,30.0,172.86,172.85,9.36648112]
[1752773255071,30.0,172.86,172.84,9.36648112]
[1752773255378,35.7850442,172.86,172.82,0.71]
[1752773255560,35.7850442,172.86,172.82,0.03]
[1752773255561,0.5785363,172.85,172.82,0.03]
[1752773255764,1.2985363,172.85,172.82,0.03]
[1752773256979,7.08407314,172.85,172.82,0.03]
[1752773257694,30.5785363,172.86,172.83,10.04648112]
[1752773258062,30.0,172.85,172.83,10.04648112]
[1752773258355,0.06,172.91,172.84,16.22408112]
[1752773258553,30.08,172.91,172.9,9.36648112]
[1752773259067,30.08,172.91,172.9,6.38323547]
[1752773259381,0.06,172.91,172.9,7.06323547]
[1752773259755,0.06,172.91,172.9,6.38323547]
[1752773260275,0.06,172.91,172.88,6.38323547]
[1752773260478,30.74,172.9,172.86,6.38323547]
[1752773260669,31.3185363,172.9,172.86,6.38323547]
[1752773261062,31.3185363,172.9,172.86,9.36633232]
[1752773261693,30.5985363,172.9,172.87,9.36633232]
[1752773262159,36.3822759,172.9,172.87,9.36633232]
[1752773262859,37.1022759,172.9,172.87,9.36633232]
[1752773263479,37.1022759,172.9,172.86,9.36633232]
[1752773263862,0.72,172.89,172.86,9.36633232]
[1752773264260,36.3823445,172.9,172.86,9.36633232]
[1752773264712,30.5985363,172.9,172.87,9.36633232]
[1752773264868,30.02,172.9,172.85,5.78530415]
[1752773265069,30.02,172.9,172.87,9.36633232]
[1752773265263,30.02,172.9,172.88,10.04633232]
[1752773265583,30.02,172.9,172.89,10.04633232]
[1752773265954,30.02,172.9,172.89,15.83035684]
[1752773266178,0.06,172.91,172.89,15.83035684]
[1752773266354,0.06,172.91,172.9,9.36633232]
[1752773266561,0.06,172.91,172.9,10.04633232]
[1752773267857,0.06,172.91,172.9,15.83002231]
[1752773268063,0.06,172.91,172.9,17.35512231]
[1752773270580,0.06,172.91,172.9,2.2051]
[1752773270772,0.06,172.91,172.9,9.36633232]
[1752773271306,0.06,172.91,172.88,9.36633232]
[1752773271673,0.06,172.91,172.89,9.36633232]
[1752773272576,0.06,172.91,172.9,9.36633232]
[1752773272775,0.06,172.91,172.9,10.04633232]
[1752773273783,0.06,172.91,172.9,15.83002231]
[1752773274391,0.06,172.91,172.9,22.10932231]
[1752773280005,0.06,172.91,172.9,15.83002231]
[1752773280211,0.06,172.91,172.9,15.15002231]
[1752773280509,0.06,172.91,172.9,9.36633232]
[1752773280709,0.06,172.91,172.9,15.15002231]
[1752773281694,0.06,172.91,172.9,9.36633232]
[1752773282090,0.06,172.91,172.89,9.36633232]
[1752773282400,1.3185363,172.91,172.88,9.36633232]
[1752773282598,0.06,172.91,172.9,9.36633232]
[1752773283292,18.10322027,172.91,172.85,33.681]
[1752773283493,16.78468397,172.89,172.82,0.74]
[1752773283700,0.5785363,172.88,172.82,0.03]
[1752773283913,0.68,172.87,172.84,9.36633232]
[1752773284125,0.68,172.86,172.84,9.36633232]
[1752773284428,0.68,172.85,172.82,9.39633232]
[1752773284806,0.68,172.85,172.82,0.03]
[1752773285823,1.2585363,172.84,172.82,0.03]
[1752773286404,56.89101629,172.83,172.82,0.03]
[1752773288218,47.52468397,172.83,172.82,0.03]
[1752773288426,56.89101629,172.83,172.82,0.03]
[1752773288922,46.84468397,172.83,172.82,0.03]
[1752773289627,30.06,172.83,172.82,9.39633232]
[1752773289806,16.78468397,172.87,172.82,10.10633232]
[1752773290122,46.88468397,172.87,172.86,9.36633232]
[1752773290511,46.88468397,172.87,172.85,9.36633232]
[1752773290713,46.88468397,172.87,172.85,15.15159272]
[1752773291831,1.2585363,172.86,172.83,15.15236483]
[1752773292727,17.46468397,172.85,172.83,5.78603251]
[1752773292950,30.22,172.84,172.83,15.15236483]
[1752773293229,31.4785363,172.84,172.82,15.18267127]
[1752773293531,30.22,172.84,172.82,5.81633895]
[1752773293724,30.22,172.84,172.83,9.36633232]
[1752773294234,30.8185363,172.86,172.84,5.78569775]
[1752773294413,30.24,172.86,172.85,9.36633232]
[1752773294606,30.24,172.86,172.85,10.07633232]
[1752773294805,47.02468397,172.88,172.85,10.07633232]
[1752773295006,47.02468397,172.88,172.87,9.36633232]
[1752773295222,47.02468397,172.88,172.84,20.24994213]
[1752773295536,30.24,172.88,172.87,9.36633232]
[1752773295707,30.24,172.88,172.86,0.71]
[1752773296434,30.24,172.88,172.87,5.7846937]
[1752773296635,47.06468397,172.9,172.87,5.7846937]
[1752773296841,0.06,172.91,172.89,9.36633232]
[1752773297140,0.06,172.91,172.9,10.65470131]
[1752773297721,0.06,172.91,172.9,10.07633232]
[1752773297928,0.06,172.93,172.9,10.07633232]
[1752773298128,0.06,172.93,172.92,9.36633232]
[1752773298327,0.06,172.93,172.92,10.07633232]
[1752773298502,0.06,172.93,172.92,15.85935337]
[1752773299433,0.06,172.93,172.92,9.36633232]
[1752773299811,0.06,172.93,172.91,5.7832836]
[1752773300005,0.06,172.93,172.92,9.36633232]
[1752773300309,0.06,172.93,172.92,10.07633232]
[1752773300710,0.06,172.93,172.92,15.85935337]
[1752773302026,0.06,172.93,172.92,15.14935337]
[1752773302417,0.06,172.93,172.92,15.85935337]
[1752773303307,0.06,172.93,172.92,9.36633232]
[1752773303801,0.06,172.93,172.9,6.49365114]